bitfinex/quotes_ETHUSD_20220212
["timestamp","ask_amount","ask_price","bid_price","bid_amount"]
[1644684060067,0.63503811,2943.6,2942.4,0.004]
[1644684060315,0.63503811,2943.6,2943.2,0.00507164]
[1644684061014,0.63503811,2943.6,2942.4,0.004]
[1644684061421,0.63503811,2943.6,2943.3,1.419e-05]
[1644684061422,3.6698,2943.5,2943.3,1.419e-05]
[1644684061622,3.6698,2943.5,2942.4,0.004]
[1644684061623,0.00078581,2943.1,2942.4,0.004]
[1644684061815,0.1698,2943.0,2942.4,0.004]
[1644684062015,0.1698,2943.0,2941.2,3.6698]
[1644684062218,0.00349028,2941.6,2941.2,3.5]
[1644684062423,0.00349028,2941.6,2940.7,3.6698]
[1644684062617,0.00349028,2941.6,2940.7,0.1698]
[1644684063222,3.50078581,2943.1,2940.7,0.1698]
[1644684063420,3.50078581,2943.1,2941.1,0.01223251]
[1644684063618,3.50078581,2943.1,2940.8,0.411]
[1644684063619,0.1698,2943.0,2940.8,0.411]
[1644684064063,0.3607,2942.5,2940.5,0.22639994]
[1644684064261,0.88956213,2940.6,2940.5,0.08819997]
[1644684064465,0.88956213,2940.6,2939.8,0.1698]
[1644684064665,0.88956213,2940.6,2939.7,0.17]
[1644684064975,0.88956213,2940.6,2939.5,0.17]
[1644684065169,0.88956213,2940.6,2938.7,0.411]
[1644684065170,0.17,2940.5,2940.4,6.549e-05]
[1644684065367,1.17,2940.5,2940.4,6.549e-05]
[1644684065566,7.25,2940.4,2938.9,0.17]
[1644684065765,7.25,2940.4,2938.6,0.01224626]
[1644684065969,7.25,2940.4,2938.7,0.17]
[1644684065970,3.5,2940.3,2938.7,0.17]
[1644684066166,3.5,2940.3,2938.1,0.08819997]
[1644684066167,4.3938,2940.3,2938.1,0.08819997]
[1644684066366,1.0,2940.2,2938.1,0.08819997]
[1644684066570,0.65912057,2938.5,2938.1,0.08819997]
[1644684066771,0.9587,2939.5,2938.1,0.08819997]
[1644684066970,0.7087,2939.5,2938.2,0.1701]
[1644684067368,0.1701,2939.4,2938.2,0.1701]
[1644684068018,0.04999999,2940.0,2938.3,1.95155]
[1644684068219,0.04999999,2940.0,2938.3,2.36255]
[1644684068621,0.04999999,2940.0,2938.3,0.661]
[1644684068821,0.81307147,2938.9,2938.3,0.411]
[1644684069821,0.04999999,2940.0,2938.3,0.411]
[1644684070021,0.04999999,2940.0,2938.5,0.26039487]
[1644684070225,0.04999999,2940.0,2938.6,0.5811]
[1644684070626,0.1701,2939.9,2938.6,0.5811]
[1644684070825,0.1701,2939.9,2938.6,0.1701]
[1644684071024,0.1701,2939.9,2938.1,0.1701]
[1644684071224,0.1701,2939.9,2939.2,9.368e-05]
[1644684071429,0.5811,2939.9,2939.2,9.368e-05]
[1644684071665,0.74773643,2939.4,2939.2,9.368e-05]
[1644684071866,0.1701,2939.3,2939.2,9.368e-05]
[1644684072669,7.25,2939.2,2937.7,0.07987459]
[1644684072872,0.1701,2939.1,2937.7,0.07987459]
[1644684073070,0.88377948,2937.9,2937.7,0.07987459]
[1644684074068,0.1701,2938.8,2937.7,0.07987459]
[1644684074269,7.25,2939.2,2937.7,0.07987459]
[1644684074270,0.1701,2939.1,2937.7,0.07987459]
[1644684074471,3.97119841,2939.1,2937.7,0.07987459]
[1644684074670,3.99364506,2939.1,2937.7,0.07405516]
[1644684074871,0.01039283,2938.8,2938.1,0.01039546]
[1644684075072,0.86959367,2938.7,2938.1,0.01039546]
[1644684075314,4.1528915,2938.6,2938.1,9.546e-05]
[1644684075719,0.01039283,2938.8,2938.1,9.546e-05]
[1644684075919,2.55402,2940.2,2937.2,4.31796135]
[1644684075920,0.1701,2939.4,2937.2,4.31796135]
[1644684076119,2.55402,2940.2,2937.5,0.411]
[1644684076120,0.06414481,2939.3,2937.5,0.411]
[1644684076319,0.23424481,2939.3,2937.6,0.1701]
[1644684076519,0.06414481,2939.3,2937.6,0.1701]
[1644684076719,0.7110455,2938.4,2937.6,0.1701]
[1644684077121,0.31414481,2939.3,2937.9,0.25]
[1644684077122,0.06414481,2939.3,2937.9,0.25]
[1644684077321,0.04999999,2940.0,2938.3,0.85073]
[1644684077521,0.1701,2940.5,2938.4,4.41667997]
[1644684077722,0.007,2941.1,2938.6,5.55]
[1644684077723,0.1701,2941.0,2938.6,5.55]
[1644684077920,0.1701,2941.0,2938.7,4.081]
[1644684078124,0.79591682,2940.0,2938.8,1.7012]
[1644684078321,0.79591682,2940.0,2938.9,0.411]
[1644684078723,0.17542718,2939.9,2938.9,1.5616]
[1644684078923,0.17542718,2939.9,2938.4,3.75819997]
[1644684078924,0.17542718,2939.9,2938.5,1.0]
[1644684079169,0.17542718,2939.9,2938.4,0.08819997]
[1644684079367,7.25,2938.4,2937.8,3.6701]
[1644684079568,7.25,2938.4,2937.4,4.1804]
[1644684079569,8.0211,2938.4,2937.4,4.1804]
[1644684079768,8.0211,2938.4,2937.4,0.4201]
[1644684079965,8.0211,2938.4,2938.0,0.01039992]
[1644684081270,8.0211,2938.4,2938.0,0.01039807]
[1644684081872,8.0211,2938.4,2937.7,0.01418627]
[1644684082172,0.75629479,2938.3,2938.0,0.00497857]
[1644684082819,0.00022396,2937.9,2937.7,0.01418627]
[1644684084320,0.81601228,2937.8,2937.7,0.01418627]
[1644684084628,7.05022396,2938.2,2937.7,0.0245909]
[1644684084926,7.05022396,2938.2,2937.7,0.01040463]
[1644684085125,4.1031,2938.1,2937.7,0.01040463]
[1644684085325,0.1201,2938.1,2937.7,0.01040463]
[1644684085524,0.75930319,2937.9,2937.0,0.1701]
[1644684085932,0.75930319,2937.9,2937.8,0.01040446]
[1644684086127,7.05022396,2938.2,2937.8,0.01040446]
[1644684086765,7.05022396,2938.2,2937.1,2.32943871]
[1644684086966,4.5417322,2938.9,2937.1,2.32943871]
[1644684086967,0.7477554,2938.1,2937.2,0.00203132]
[1644684087166,0.01040242,2938.4,2937.3,2.3292587]
[1644684087967,0.1701,2938.8,2937.3,2.3292587]
[1644684088166,0.62971368,2938.1,2937.8,0.004]
[1644684088772,0.4201,2939.0,2937.8,0.004]
[1644684088971,0.1701,2939.4,2937.8,1.1887]
[1644684089168,1.0,2940.0,2937.9,6.12880879]
[1644684089169,0.1701,2940.0,2937.9,6.12880879]
[1644684089369,2.04415372,2940.2,2938.2,0.01267067]
[1644684089567,0.1701,2940.1,2938.3,0.661]
[1644684089767,0.01039604,2938.5,2938.3,0.97510879]
[1644684089969,0.01039604,2938.5,2938.3,0.961]
[1644684090330,0.01039604,2938.5,2937.9,0.31410879]
[1644684090331,0.01039604,2938.5,2937.7,1.0]
[1644684090517,0.01039604,2938.5,2938.3,2.32844899]
[1644684091728,0.84439196,2938.9,2938.3,2.32844899]
[1644684092120,0.01039604,2938.5,2938.3,2.32844899]
[1644684093121,0.84439196,2938.9,2938.3,2.32844899]
[1644684093320,0.00976606,2938.5,2938.3,2.32844899]
[1644684093520,0.64518717,2938.5,2938.3,2.32844899]
[1644684094168,0.63542111,2938.5,2938.3,2.32844899]
[1644684094565,0.64457242,2938.5,2938.3,2.32844899]
[1644684094975,0.1701,2938.4,2938.3,2.32844899]
[1644684095473,0.1701,2938.4,2938.3,2.33244899]
[1644684095672,0.63542111,2938.5,2938.3,2.33244899]
[1644684095873,0.64457249,2938.5,2938.3,2.33244899]
[1644684096074,1.0,2939.5,2938.3,2.33244899]
[1644684096075,1.70248,2940.2,2938.3,0.304]
[1644684096281,0.1376,2941.0,2938.3,0.304]
[1644684096282,2.56166,2941.1,2938.9,5.0]
[1644684096475,2.56166,2941.1,2939.5,5.0]
[1644684096476,2.04413979,2940.3,2939.5,5.0]
[1644684096675,0.008,2941.1,2939.6,3.911]
[1644684096874,0.007,2941.1,2940.2,0.0122171]
[1644684097074,0.007,2941.1,2940.9,0.01245384]
[1644684097273,0.007,2941.1,2940.9,0.83175384]
[1644684097473,0.007,2941.1,2941.0,0.17]
[1644684097674,0.007,2941.1,2941.0,0.581]
[1644684098111,0.00078581,2943.1,2941.3,1.6997]
[1644684098313,0.0196966,2942.5,2941.5,0.25]
[1644684098512,0.0196966,2942.5,2941.6,0.411]
[1644684098720,0.0196966,2942.5,2941.6,0.711]
[1644684098920,0.0196966,2942.5,2941.6,1.011]
[1644684099216,0.1698,2943.0,2941.6,1.011]
[1644684099417,0.00078581,2943.1,2941.8,0.84988]
[1644684099418,0.00492642,2942.2,2941.8,0.84988]
[1644684099617,0.00492642,2942.2,2941.9,0.411]
[1644684099816,0.00492642,2942.2,2941.9,1.46346]
[1644684100018,2.914e-05,2942.6,2941.9,1.46346]
[1644684100218,2.914e-05,2942.6,2942.2,1.05238]
[1644684100419,0.85026068,2942.9,2942.2,1.05238]
[1644684100420,0.73398964,2942.8,2942.2,1.46338]
[1644684100620,0.90478964,2942.8,2942.2,1.05238]
[1644684100818,0.73398964,2942.7,2942.2,1.03390116]
[1644684101019,0.1698,2942.6,2942.2,1.03390116]
[1644684101217,0.73398964,2942.5,2942.2,1.03390116]
[1644684101419,0.00078581,2943.1,2942.2,1.03390116]
[1644684101420,0.73398964,2942.4,2942.2,1.03390116]
[1644684101661,0.1698,2942.4,2942.2,1.03390116]
[1644684101856,0.64051918,2943.1,2942.2,1.03390116]
[1644684101857,0.1698,2943.0,2942.2,1.03390116]
[1644684102259,0.01041229,2942.7,2942.2,1.03390116]
[1644684102461,0.70582388,2942.6,2942.2,1.03390116]
[1644684102658,0.68602388,2942.5,2942.2,1.03390116]
[1644684102860,0.68602388,2942.4,2941.1,3.5]
[1644684103057,0.63973337,2943.0,2942.1,0.0104145]
[1644684103058,0.65014575,2942.7,2942.1,0.0104145]
[1644684103258,0.68602388,2942.6,2942.1,1.45e-05]
[1644684103460,0.63973337,2942.3,2942.1,1.45e-05]
[1644684103662,0.70868337,2942.2,2942.1,1.45e-05]
[1644684103859,1.32575725,2942.2,2942.1,1.45e-05]
[1644684104058,0.68602388,2942.2,2941.2,0.1699]
[1644684104262,0.68602388,2942.1,2941.1,1.05274]
[1644684104459,0.68602388,2942.0,2941.1,1.05274]
[1644684104659,6.27946673,2942.9,2941.1,1.05274]
[1644684104660,4.73782843,2942.9,2941.1,1.05274]
[1644684104859,0.85046,2942.8,2941.1,1.05274]
[1644684105063,3.73782843,2942.6,2941.1,1.05274]
[1644684105312,1.0,2942.5,2941.1,1.05274]
[1644684105514,6.43905843,2942.5,2941.8,6.882e-05]
[1644684105713,3.73782843,2942.2,2941.8,6.882e-05]
[1644684106113,2.07310084,2942.4,2941.8,6.882e-05]
[1644684106114,1.07310084,2942.4,2941.8,6.882e-05]
[1644684106314,3.73782843,2942.0,2941.8,6.882e-05]
[1644684106516,0.01975,2941.9,2941.1,1.05274]
[1644684106715,0.69423625,2941.3,2941.1,1.05274]
[1644684107118,0.01974,2941.2,2941.1,1.05274]
[1644684107316,0.69423625,2941.3,2941.1,1.05274]
[1644684107517,4.00793295,2941.2,2939.4,0.1698]
[1644684107719,0.85092,2941.0,2939.4,0.1698]
[1644684107918,0.85092,2941.0,2939.6,1.26217157]
[1644684107919,5.13048057,2940.9,2939.6,1.26217157]
[1644684108120,5.13048057,2940.9,2939.3,0.17]
[1644684108121,3.5,2940.9,2939.3,0.17]
[1644684108320,1.43074,2940.8,2939.3,0.17]
[1644684108518,0.43074,2940.8,2939.3,0.17]
[1644684108720,0.80099729,2940.0,2939.3,0.17]
[1644684109159,0.43074,2940.8,2939.9,0.01042198]
[1644684109362,0.25,2941.5,2939.9,0.00848176]
[1644684109564,0.25,2941.5,2941.1,0.004]
[1644684109760,0.01976,2941.4,2941.1,0.004]
[1644684109960,0.01977,2941.6,2941.1,0.004]
[1644684110164,3.911,2942.0,2941.1,0.004]
[1644684110165,0.83965013,2941.5,2941.1,0.004]
[1644684110364,0.85945013,2941.5,2941.1,0.004]
[1644684110564,0.83965013,2941.5,2941.1,0.004]
[1644684110765,0.78965013,2941.5,2941.1,0.004]
[1644684114618,0.66272972,2941.0,2940.7,1.21617157]
[1644684114822,0.66272972,2941.0,2939.9,0.711]
[1644684115022,0.66272972,2941.0,2940.6,1.21617157]
[1644684115221,0.66272972,2941.0,2940.7,0.17]
[1644684115422,5.65,2941.4,2940.7,0.17]
[1644684115623,0.65176587,2942.0,2940.9,1.21617157]
[1644684115624,0.01041687,2942.0,2940.9,1.21617157]
[1644684115820,0.65176587,2942.0,2940.7,1.21617157]
[1644684116020,4.02393414,2941.9,2940.7,1.21617157]
[1644684116420,0.65176615,2942.0,2940.7,1.21617157]
[1644684116663,0.77644011,2941.5,2940.7,1.21617157]
[1644684116866,0.77644011,2941.5,2941.1,1.21617157]
[1644684117065,0.77644011,2941.5,2940.0,0.18259443]
[1644684117266,0.77644011,2941.5,2940.7,1.21617157]
[1644684117267,0.27644011,2941.5,2940.7,1.21617157]
[1644684117469,0.27644011,2941.5,2940.2,1.21617157]
[1644684117668,0.81013401,2940.9,2940.3,0.17]
[1644684117871,0.662129,2941.8,2940.3,0.17]
[1644684118067,4.56549733,2941.7,2940.3,0.17]
[1644684118365,0.02104,2941.6,2940.3,0.17]
[1644684118569,0.662389,2941.6,2940.3,0.17]
[1644684118770,0.83022819,2941.2,2940.3,0.17]
[1644684119370,0.83022819,2941.2,2940.3,0.12]
[1644684119572,0.85148164,2940.7,2940.3,0.12]
[1644684119772,3.90514053,2940.6,2940.3,0.12]
[1644684119974,0.85148164,2940.7,2940.3,0.12]
[1644684120422,0.85148164,2940.7,2939.4,1.21617157]
[1644684120625,0.85148164,2940.7,2939.5,0.17]
[1644684120825,0.85148164,2940.7,2939.9,1.21617157]
[1644684121124,0.85148164,2940.7,2939.4,1.21617157]
[1644684121323,0.85148164,2940.7,2939.2,0.31213738]
[1644684121324,0.85148164,2940.7,2939.2,1.38617157]
[1644684121526,0.85148164,2940.7,2939.1,0.17]
[1644684121725,0.85148164,2940.7,2938.9,0.13819997]
[1644684121726,0.85148164,2940.7,2939.0,0.17]
[1644684121924,0.85148164,2940.7,2939.9,1.21617157]
[1644684122126,0.85148164,2940.7,2939.2,1.38617157]
[1644684122127,3.97861901,2940.6,2939.2,1.38617157]
[1644684122325,4.04840901,2940.6,2939.7,1.685e-05]
[1644684122531,7.83223744,2940.6,2939.7,1.685e-05]
[1644684122727,0.411,2940.5,2939.7,1.685e-05]
[1644684122926,7.25,2940.3,2939.3,0.00503779]
[1644684123127,0.84514009,2939.5,2939.3,0.00503779]
[1644684123325,4.03074841,2940.2,2939.1,1.21617157]
[1644684123528,0.06905,2940.1,2939.1,1.21617157]
[1644684123726,0.06905,2940.1,2938.8,0.17]
[1644684123927,7.25,2940.3,2938.8,0.17]
[1644684123928,7.25,2940.3,2939.8,1.21617157]
[1644684124167,7.25,2940.3,2939.6,1.21617157]
[1644684124366,0.7664919,2939.8,2939.6,1.21617157]
[1644684124571,7.25,2940.3,2939.3,1.21617157]
[1644684124766,7.25,2940.3,2939.5,1.21617157]
[1644684124973,0.62593967,2940.2,2938.8,0.17]
[1644684125176,4.44517177,2940.2,2938.8,0.17]
[1644684125375,0.62593967,2940.1,2939.1,1.21617157]
[1644684125572,0.73105868,2940.0,2939.1,1.21617157]
[1644684125773,0.73105868,2940.0,2938.7,3.64173592]
[1644684125972,0.73105868,2940.0,2939.2,0.17]
[1644684126172,0.73105868,2940.0,2938.8,0.1701]
[1644684126173,0.62606777,2939.9,2938.8,0.1701]
[1644684126972,0.62606777,2939.9,2938.7,1.21617157]
[1644684127273,0.62606777,2939.9,2938.5,0.13819997]
[1644684127274,0.86100912,2939.5,2938.5,0.13819997]
[1644684127473,0.87142577,2939.5,2939.2,0.01041787]
[1644684127915,0.62635419,2939.4,2939.2,0.01041787]
[1644684128116,0.87142577,2939.5,2939.2,0.01041787]
[1644684128316,11.22263614,2940.3,2938.5,1.35437154]
[1644684128317,0.8731861,2939.0,2938.5,1.35437154]
[1644684128515,0.8731861,2939.0,2938.5,0.13819997]
[1644684128717,0.01041665,2939.5,2938.5,0.13819997]
[1644684129317,0.64608608,2939.4,2938.5,0.13819997]
[1644684129618,0.71462608,2939.4,2938.5,0.13819997]
[1644684129818,0.74871782,2939.2,2938.9,0.01041827]
[1644684130623,0.74871782,2939.2,2938.4,70.0]
[1644684131224,0.64682417,2939.1,2938.4,70.0]
[1644684131572,0.813665,2938.7,2938.4,70.0]
[1644684132165,0.813665,2938.7,2938.6,0.01021761]
[1644684132365,1.46057632,2938.7,2938.6,0.01021761]
[1644684132768,1.46057632,2938.7,2938.6,1.761e-05]
[1644684133166,1.46057632,2938.7,2938.4,70.0]
[1644684133365,0.64691132,2938.6,2938.4,70.0]
[1644684135819,0.64691132,2938.6,2938.4,70.0104099]
[1644684136019,0.64691132,2938.6,2938.4,28.00835697]
[1644684136223,0.411,2938.5,2937.9,2.5]
[1644684136421,4.43073975,2938.4,2937.9,2.5]
[1644684136720,4.43073975,2938.4,2936.5,3.09018179]
[1644684136721,0.71667132,2938.3,2936.5,3.09018179]
[1644684136927,2.266965,2938.7,2936.9,0.1701]
[1644684136928,0.411,2938.2,2936.9,0.1701]
[1644684137122,1.09439586,2938.2,2937.9,2.5]
[1644684137325,0.813665,2938.7,2937.9,2.5]
[1644684137326,0.411,2938.7,2937.9,2.5]
[1644684137526,1.91412158,2939.5,2938.0,0.1701]
[1644684137527,2.04476676,2939.4,2938.0,0.1701]
[1644684137824,3.93179,2939.5,2938.1,1.21617157]
[1644684137825,0.68790886,2939.3,2938.1,1.21617157]
[1644684138025,0.68790886,2939.2,2938.0,0.1701]
[1644684138223,0.68790886,2939.1,2938.0,0.1701]
[1644684139466,0.00551668,2938.7,2938.0,0.1701]
[1644684139866,0.68801758,2938.6,2938.0,0.1701]
[1644684140065,0.06984,2938.6,2938.0,0.1701]
[1644684140471,0.06983,2939.0,2938.0,0.1701]
[1644684140673,0.01041475,2938.7,2938.2,0.01041653]
[1644684140873,0.01041475,2938.7,2937.5,0.0416751]
[1644684140874,7.25,2938.5,2937.5,0.0416751]
[1644684141072,3.78382843,2938.3,2937.5,0.0416751]
[1644684141271,0.87645818,2938.4,2937.5,0.0416751]
[1644684141272,0.71615818,2938.2,2937.5,0.0416751]
[1644684141470,0.71615818,2938.1,2937.5,0.0416751]
[1644684141673,0.71615818,2938.1,2936.5,3.5]
[1644684141871,0.72993102,2937.8,2936.5,3.5]
[1644684142171,3.78382843,2938.2,2936.8,1.21617157]
[1644684142370,0.7162613,2938.1,2936.5,3.5]
[1644684142571,0.7162613,2938.1,2936.4,1.77808214]
[1644684142572,4.50008973,2938.1,2936.4,1.77808214]
[1644684142814,0.7162613,2938.0,2936.5,3.5]
[1644684143013,0.7162613,2938.0,2936.4,1.77808214]
[1644684143014,0.7162613,2938.0,2936.6,0.1701]
[1644684143615,0.65575704,2937.7,2936.6,0.1701]
[1644684143814,0.65575704,2937.7,2936.4,2.99425371]
[1644684144015,5.58547743,2938.4,2936.5,3.71270299]
[1644684144016,0.25,2938.4,2936.5,3.71270299]
[1644684144216,0.25,2938.4,2937.5,1.21617157]
[1644684144217,0.71350297,2938.3,2937.5,1.21617157]
[1644684144418,0.25552233,2938.4,2938.0,1.21617157]
[1644684144419,0.00552233,2938.4,2938.0,1.21617157]
[1644684144618,0.00552233,2938.4,2938.0,1.16617157]
[1644684145420,0.801649,2939.3,2937.9,1.16617157]
[1644684145620,0.69096165,2939.2,2937.9,1.16617157]
[1644684145825,0.00552649,2938.4,2937.9,1.16617157]
[1644684146021,0.00552649,2938.4,2937.4,0.83579495]
[1644684146223,0.00552649,2938.4,2937.5,1.16617157]
[1644684146424,0.85148,2939.0,2937.4,2.00196652]
[1644684146669,0.69126923,2938.9,2937.4,0.83579495]
[1644684146867,0.00552592,2938.4,2937.4,0.83579495]
[1644684147169,0.00552592,2938.4,2936.9,0.1701]
[1644684147170,0.85156923,2938.3,2936.9,0.1701]
[1644684147372,0.85187,2937.8,2936.9,0.1701]
[1644684147568,0.85187,2937.8,2936.4,5.27808214]
[1644684147569,1.95417923,2937.7,2936.4,5.44818214]
[1644684147768,0.85156923,2937.6,2936.4,1.94818214]
[1644684147968,0.85156923,2937.6,2936.4,1.77808214]
[1644684147969,1.10226923,2937.5,2936.4,1.77808214]
[1644684148173,0.75483634,2937.0,2936.4,1.77808214]
[1644684148372,2.05283634,2937.0,2936.4,1.77808214]
[1644684148569,1.4583,2937.0,2936.4,1.77808214]
[1644684148774,1.298,2937.0,2936.4,1.77808214]
[1644684149069,0.25,2936.9,2936.4,1.77808214]
[1644684149271,0.4103,2936.9,2936.6,0.01002498]
[1644684149468,0.25,2936.9,2936.6,0.01002498]
[1644684149870,0.661,2936.9,2936.6,0.01002498]
[1644684150069,0.661,2936.9,2936.4,1.77808214]
[1644684150321,0.661,2936.9,2936.6,0.00487311]
[1644684150524,0.25,2936.9,2936.6,0.00487311]
[1644684151423,0.25,2936.9,2936.4,1.77808214]
[1644684151625,0.25,2936.9,2936.6,0.00487311]
[1644684152425,0.81852005,2936.8,2936.6,0.00487311]
[1644684152623,0.2,2936.9,2936.4,1.77808214]
[1644684152827,1.1071,2937.0,2936.6,0.01039816]
[1644684153325,0.7999,2937.0,2936.6,0.01039816]
[1644684153526,0.9602,2937.0,2936.6,0.01039816]
[1644684153725,0.9602,2937.0,2936.4,1.77808214]
[1644684153926,0.1603,2937.0,2936.7,0.01039808]
[1644684154473,3.95070267,2937.0,2936.7,0.01039808]
[1644684154675,4.36170267,2937.0,2936.7,0.01039808]
[1644684154874,0.5713,2937.0,2936.4,1.77808214]
[1644684155073,3.68462156,2936.9,2936.4,1.77808214]
[1644684155274,3.68462156,2936.9,2936.7,9.799e-05]
[1644684155480,7.25,2936.7,2936.4,1.77808214]
[1644684155679,2.11558,2936.8,2935.3,0.1701]
[1644684155680,6.0,2936.5,2935.3,0.1701]
[1644684155979,6.0,2936.5,2935.4,0.04320018]
[1644684155980,4.16397849,2936.4,2935.4,0.04320018]
[1644684156184,0.411,2936.3,2935.4,0.04320018]
[1644684156380,0.411,2936.3,2935.3,1.16617157]
[1644684156579,0.411,2936.3,2935.0,0.21577388]
[1644684156779,0.411,2936.3,2935.9,1.16617157]
[1644684157381,0.411,2937.0,2936.2,1.16617157]
[1644684157582,6.6317,2937.2,2936.2,1.16617157]
[1644684157583,4.3202,2937.2,2936.2,1.16617157]
[1644684157820,0.00982343,2936.4,2936.0,0.00982508]
[1644684158623,0.411,2937.0,2935.2,1.33627157]
[1644684158824,4.48988231,2936.9,2935.9,1.16617157]
[1644684159019,0.00982362,2936.4,2936.1,0.00982493]
[1644684159820,4.32958231,2936.9,2935.7,1.16617157]
[1644684160020,4.32958231,2936.9,2936.1,0.00982486]
[1644684160021,0.00982371,2936.4,2936.1,0.00982486]
[1644684161027,4.32958231,2936.9,2935.8,0.04092649]
[1644684161228,0.0098188,2936.4,2936.1,0.00981995]
[1644684161873,0.0098188,2936.4,2936.3,1.16617157]
[1644684162267,0.25,2937.5,2936.3,1.16617157]
[1644684162467,0.25,2937.5,2936.1,1.33627157]
[1644684162673,0.25,2937.5,2936.0,0.83295843]
[1644684162674,0.85758773,2937.4,2936.0,0.83295843]
[1644684162869,4.62932875,2937.4,2936.1,0.00981995]
[1644684163069,0.85758095,2937.3,2936.2,1.16617157]
[1644684163469,3.79250993,2937.2,2935.8,0.04092649]
[1644684163669,3.79250993,2937.2,2936.4,1.16617157]
[1644684163870,0.00981824,2936.9,2936.2,1.1759923]
[1644684164072,0.00981824,2936.9,2936.4,1.16617157]
[1644684164669,0.24152793,2936.1,2935.9,0.1701]
[1644684165924,0.24152793,2936.1,2935.8,0.78382167]
[1644684166325,0.24152793,2936.1,2935.9,0.04035807]
[1644684168324,0.24152793,2936.1,2935.9,0.03839937]
[1644684171377,0.24152793,2936.1,2935.2,0.1701]
[1644684171378,0.24152793,2936.1,2935.3,0.04180991]
[1644684171578,0.5713,2937.1,2935.4,6.9103]
[1644684171579,0.31840638,2937.1,2935.4,6.9103]
[1644684171775,0.83637453,2937.0,2935.5,3.5]
[1644684171972,0.83637453,2937.0,2935.6,0.1701]
[1644684172173,0.83637453,2937.0,2935.6,0.92147185]
[1644684173334,0.00557671,2936.5,2935.6,0.92147185]
[1644684174333,0.31840638,2937.1,2935.6,0.92147185]
[1644684174531,0.83779825,2937.0,2935.6,0.92147185]
[1644684174732,0.00557624,2936.5,2935.6,0.92147185]
[1644684175537,0.31840638,2937.1,2935.6,0.92147185]
[1644684175738,0.8379907,2937.0,2935.6,0.92147185]
[1644684176038,0.01039324,2936.5,2935.9,0.01039552]
[1644684176239,0.01039324,2936.5,2936.0,5.411]
[1644684176440,0.01039324,2936.5,2936.1,1.0]
[1644684176679,0.01039324,2936.5,2936.4,0.01273695]
[1644684176680,9.324e-05,2936.5,2936.4,0.01273695]
[1644684176884,0.85832976,2937.7,2936.4,5.09383695]
[1644684177081,0.85832976,2937.6,2936.5,0.1701]
[1644684177285,0.85832976,2937.5,2936.5,0.1701]
[1644684177483,0.85832976,2937.4,2936.5,0.1701]
[1644684177685,0.641349,2938.2,2937.3,0.65573582]
[1644684177884,0.85824857,2938.1,2937.3,0.65573582]
[1644684178084,0.85824857,2938.0,2937.3,0.65573582]
[1644684178285,0.85511485,2938.5,2937.4,0.1701]
[1644684178286,0.641349,2938.5,2937.4,0.1701]
[1644684178488,0.00494671,2937.9,2937.4,0.1701]
[1644684178684,0.00494671,2937.9,2937.5,0.411]
[1644684178889,0.00494671,2937.9,2937.8,0.01287203]
[1644684178890,4.671e-05,2937.9,2937.8,0.01287203]
[1644684179086,4.671e-05,2937.9,2937.8,0.42387203]
[1644684179285,4.671e-05,2937.9,2937.8,1.72387203]
[1644684179487,0.01977756,2939.3,2937.8,1.72387203]
[1644684179685,0.641349,2939.3,2937.8,1.711]
[1644684179885,0.641349,2939.1,2937.9,0.3]
[1644684180085,2.56274671,2940.0,2938.4,0.86826459]
[1644684180086,0.641349,2939.0,2938.4,0.86826459]
[1644684180316,0.641349,2939.1,2938.4,0.86826459]
[1644684180521,0.641349,2939.3,2937.9,0.711]
[1644684180923,0.641349,2939.3,2937.6,0.1701]
[1644684180924,0.641349,2939.1,2937.6,0.1701]
[1644684181121,0.85511485,2939.3,2937.5,0.6]
[1644684181122,0.641349,2939.0,2937.5,0.6]
[1644684181321,0.641349,2939.2,2937.7,0.1701]
[1644684181520,0.641349,2939.2,2937.8,0.72439578]
[1644684181721,1.28258943,2939.8,2937.9,3.6701]
[1644684181722,0.641349,2939.6,2937.9,3.6701]
[1644684181927,0.01039054,2938.6,2937.9,4.6811]
[1644684182321,0.01039054,2938.6,2938.0,1.0]
[1644684182521,9.054e-05,2938.6,2938.1,0.5811]
[1644684182721,9.054e-05,2938.6,2938.1,1.1811]
[1644684182921,0.641349,2939.9,2938.9,0.66991827]
[1644684183123,0.641349,2939.9,2938.2,3.5]
[1644684183327,0.641349,2939.9,2938.3,1.1701]
[1644684183729,0.641349,2940.0,2938.4,3.5]
[1644684183927,0.891349,2940.1,2938.7,20.1]
[1644684184192,0.641349,2940.3,2938.8,4.13712672]
[1644684184391,0.641349,2940.3,2938.8,4.43712672]
[1644684184595,0.641349,2940.3,2938.9,1.0]
[1644684184795,0.641349,2940.3,2939.0,0.411]
[1644684184992,0.641349,2940.3,2939.0,4.05095132]
[1644684185192,0.641349,2940.3,2939.0,4.65095132]
[1644684185392,0.641349,2940.4,2939.1,1.0]
[1644684185594,0.641349,2940.4,2939.0,0.81655646]
[1644684185793,0.641349,2940.4,2939.0,0.711]
[1644684185994,0.641349,2940.4,2939.4,0.87100224]
[1644684186196,0.25,2941.0,2938.7,0.411]
[1644684186197,0.641349,2940.2,2938.7,0.411]
[1644684186495,0.641349,2940.3,2938.7,0.411]
[1644684186696,0.641349,2940.2,2938.5,3.8392]
[1644684186896,0.00555901,2939.6,2938.5,0.1701]
[1644684187821,0.87734756,2940.0,2938.3,0.75218025]
[1644684187822,0.641349,2940.0,2938.3,0.75218025]
[1644684188220,0.00555901,2939.2,2938.3,0.75218025]
[1644684188620,0.00555901,2939.2,2938.8,0.82966]
[1644684188820,0.00555901,2939.2,2938.0,0.1701]
[1644684189022,0.85127,2939.9,2938.0,0.1701]
[1644684189223,0.00555553,2939.1,2938.0,0.1701]
[1644684190225,4.16006444,2939.6,2938.0,0.1701]
[1644684190427,0.01039755,2938.7,2938.1,0.75777556]
[1644684191326,0.25,2939.5,2937.6,4.9567]
[1644684191574,0.661,2939.5,2937.6,4.9567]
[1644684191774,0.01039727,2938.7,2937.7,0.01040089]
[1644684192673,0.01039727,2938.7,2937.2,0.13819997]
[1644684192674,1.0853,2938.7,2937.2,0.13819997]
[1644684192874,0.411,2938.6,2937.1,0.13819997]
[1644684193174,0.411,2938.6,2936.4,3.6549]
[1644684193175,5.0,2938.5,2937.7,0.01040051]